fUSD/lending_fUSD_20251012
["ID","MTS","AMOUNT","RATE_DAILY","PERIOD"]
[391025052,1760296312128,-500.0,0.00027561,60]
[391025053,1760296312138,-500.0,0.00027561,60]
[391025054,1760296312148,-536.0,0.00027561,60]
[391025055,1760296312158,-1357.56,0.00027572,15]
[391025056,1760296312168,-150.0,0.00027616,60]
[391025057,1760296312179,-150.0,0.00027616,60]
[391025058,1760296312190,-500.0,0.00027616,60]
[391025059,1760296312200,-150.0,0.00027616,60]
[391025060,1760296312212,-559.0,0.00027616,60]
[391025061,1760296312223,-500.0,0.00027616,60]
[391025062,1760296312233,-500.0,0.00027616,2]
[391025063,1760296312244,-1219.0,0.00027616,14]
[391025064,1760296312253,-282.82471409,0.00027616,2]
[391025065,1760296312263,-150.0,0.00027616,60]
[391025066,1760296312275,-500.0,0.00027616,60]
[391025067,1760296312285,-500.0,0.00027616,60]
[391025068,1760296312295,-500.0,0.00027616,60]
[391025069,1760296312305,-500.0,0.00027616,60]
[391025070,1760296312316,-681.0,0.00027616,60]
[391025071,1760296312326,-500.0,0.00027616,60]
[391025072,1760296312337,-288.86319285,0.00027616,60]
[391025073,1760296312348,-500.0,0.00027616,60]
[391025074,1760296312359,-500.0,0.00027616,60]
[391025075,1760296312370,-150.0,0.00027616,60]
[391025076,1760296312380,-150.0,0.00027616,60]
[391025077,1760296312391,-500.0,0.00027616,60]
[391025078,1760296312401,-500.0,0.00027616,60]
[391025079,1760296312412,-500.0,0.00027616,60]
[391025080,1760296312424,-536.0,0.00027616,60]
[391025081,1760296312434,-1000.0,0.00027626,7]
[391025082,1760296312445,-1647.85,0.00027626,7]
[391025083,1760296312456,-152.0,0.00027656,19]
[391025084,1760296312466,-250.0,0.00027671,60]
[391025085,1760296312476,-250.0,0.00027671,60]
[391025086,1760296312487,-500.0,0.00027671,60]
[391025087,1760296312498,-250.0,0.00027671,60]
[391025088,1760296312508,-559.0,0.00027671,60]
[391025089,1760296312518,-500.0,0.00027671,60]
[391025090,1760296312528,-500.0,0.00027671,2]
[391025091,1760296312539,-1219.0,0.00027671,14]
[391025092,1760296312550,-250.0,0.00027671,60]
[391025093,1760296312560,-500.0,0.00027671,60]
[391025094,1760296312571,-500.0,0.00027671,60]
[391025095,1760296312582,-500.0,0.00027671,60]
[391025096,1760296312593,-500.0,0.00027671,60]
[391025097,1760296312603,-681.0,0.00027671,60]
[391025098,1760296312614,-500.0,0.00027671,60]
[391025099,1760296312625,-500.0,0.00027671,60]
[391025100,1760296312636,-250.0,0.00027671,60]
[391025101,1760296312646,-250.0,0.00027671,60]
[391025102,1760296312656,-441.3839637,0.00027671,60]
[391025103,1760296312669,-500.0,0.00027671,60]
[391025104,1760296312679,-536.0,0.00027671,60]
[391025105,1760296312688,-200.0,0.00027671,2]
[391025106,1760296312698,-200.0,0.00027671,2]
[391025107,1760296312707,-200.0,0.00027671,2]
[391025108,1760296312718,-1357.56,0.00027672,15]
[391025109,1760296312728,-1000.0,0.00027702,7]
[391025110,1760296312738,-500.0,0.00027709,2]
[391025111,1760296312749,-500.0,0.00027726,60]
[391025112,1760296312760,-559.0,0.00027726,60]
[391025113,1760296312770,-500.0,0.00027726,60]
[391025114,1760296312780,-500.0,0.00027726,2]
[391025115,1760296312790,-1219.0,0.00027726,14]
[391025116,1760296312800,-500.0,0.00027726,60]
[391025117,1760296312811,-503.09520593,0.00027726,60]
[391025118,1760296312823,-500.0,0.00027726,60]
[391025119,1760296312834,-500.0,0.00027726,60]
[391025120,1760296312844,-681.0,0.00027726,60]
[391025121,1760296312855,-500.0,0.00027726,60]
[391025122,1760296312867,-500.0,0.00027726,60]
[391025123,1760296312878,-500.0,0.00027726,60]
[391025124,1760296312888,-536.0,0.00027726,60]
[391025125,1760296312898,-833.55497963,0.00027756,8]
[391025126,1760296312910,-5396.95,0.00027767,15]
[391025127,1760296312922,-5396.95,0.00027767,15]
[391025128,1760296312932,-5396.95,0.00027767,15]
[391025129,1760296312942,-5396.95,0.00027767,15]
[391025130,1760296312955,-400.0,0.0002777,15]
[391025131,1760296312965,-1357.56,0.00027772,15]
[391025132,1760296312975,-1000.0,0.00027778,7]
[391025133,1760296312989,-500.0,0.00027781,60]
[391025134,1760296313000,-559.0,0.00027781,60]
[391025135,1760296313011,-500.0,0.00027781,60]
[391025136,1760296313021,-500.0,0.00027781,2]
[391025137,1760296313032,-1219.0,0.00027781,14]
[391025138,1760296313042,-500.0,0.00027781,60]
[391025139,1760296313053,-500.0,0.00027781,60]
[391025140,1760296313064,-500.0,0.00027781,60]
[391025141,1760296313076,-681.0,0.00027781,60]
[391025142,1760296313088,-500.0,0.00027781,60]
[391025143,1760296313099,-235.06784831,0.00027781,60]
[391025144,1760296313110,-500.0,0.00027781,60]
[391025145,1760296313122,-536.0,0.00027781,60]
[391025146,1760296313133,-11301.4817523,0.000278,2]
[391025147,1760296313143,-150.0,0.00027822,2]
[391025148,1760296313155,-500.0,0.00027835,60]
[391025149,1760296313165,-559.0,0.00027835,60]
[391025150,1760296313176,-500.0,0.00027835,2]
[391025151,1760296313187,-1219.0,0.00027835,14]
[391025152,1760296313197,-500.0,0.00027835,60]
[391025153,1760296313207,-500.0,0.00027835,60]
[391025154,1760296313219,-500.0,0.00027835,60]
[391025155,1760296313232,-681.0,0.00027835,60]
[391025156,1760296313243,-500.0,0.00027835,60]
[391025157,1760296313256,-500.0,0.00027835,60]
[391025158,1760296313269,-536.0,0.00027835,60]
[391025159,1760296313281,-1000.0,0.00027854,7]
[391025160,1760296313295,-1357.56,0.00027872,15]
[391025161,1760296313306,-500.0,0.0002789,60]
[391025162,1760296313320,-559.0,0.0002789,60]
[391025163,1760296313331,-500.0,0.0002789,2]
[391025164,1760296313343,-1219.0,0.0002789,14]
[391025165,1760296313355,-252.0,0.0002789,60]
[391025166,1760296313365,-500.0,0.0002789,60]
[391025167,1760296313376,-681.0,0.0002789,60]
[391025168,1760296313386,-500.0,0.0002789,60]
[391025169,1760296313397,-536.0,0.0002789,60]
[391025170,1760296313407,-1419.58,0.000279,7]
[391025171,1760296313418,-2816.0,0.000279,17]
[391025172,1760296313429,-110251.77880086,0.00027917,10]
[391025173,1760296313439,-150.0,0.00027921,30]
[391025174,1760296313450,-1000.0,0.0002793,7]
[391025175,1760296313461,-568.994376,0.00027945,120]
[391025176,1760296313472,-500.0,0.00027945,60]
[391025177,1760296313483,-559.0,0.00027945,60]
[391025178,1760296313494,-593.75179416,0.00027945,2]
[391025179,1760296313504,-1219.0,0.00027945,14]
[391025180,1760296313515,-500.0,0.00027945,60]
[391025181,1760296313526,-681.0,0.00027945,60]
[391025182,1760296313537,-500.0,0.00027945,60]
[391025183,1760296313548,-536.0,0.00027945,60]
[391025184,1760296313560,-600.0,0.00027945,2]
[391025185,1760296313571,-270.0455652,0.00027946,2]
[391025186,1760296313582,-200.0,0.00027948,2]
[391025187,1760296313593,-200.0,0.00027948,2]
[391025188,1760296313603,-200.0,0.00027948,2]
[391025189,1760296313614,-152.0,0.00027956,20]
[391025190,1760296313627,-1357.56,0.00027972,15]
[391025191,1760296313638,-500.0,0.00028,60]
[391025192,1760296313648,-559.0,0.00028,60]
[391025193,1760296313659,-1219.0,0.00028,14]
[391025194,1760296313669,-500.0,0.00028,60]
[391025195,1760296313680,-681.0,0.00028,60]
[391025196,1760296313691,-500.0,0.00028,60]
[391025197,1760296313702,-536.0,0.00028,60]
[391025198,1760296314028,-281.86,0.00028,2]
[391025199,1760296314042,-49969.14932162,0.00028,2]
[391025200,1760296314053,-160.0,0.00028,2]
[391025201,1760296314067,-40000.0,0.00028,7]
[391025202,1760296314078,-1000.0,0.00028,2]
[391025203,1760296314090,-42225.39992671,0.00028,14]
[391025204,1760296314103,-3958.72,0.00028,2]
[391025205,1760296314114,-150.0,0.00028,3]
[391025206,1760296314125,-40365.89,0.00028,2]
[391025207,1760296314137,-2193.83751084,0.00028,30]
[391025208,1760296314149,-1779.99874975,0.00028,120]
[391025209,1760296314161,-800.0,0.00028,120]
[391025210,1760296314172,-94178.51,0.00028,7]
[391025211,1760296314184,-4561.58,0.00028,7]
[391025212,1760296314196,-600.0,0.00028,120]
[391025213,1760296314206,-600.0,0.00028,120]
[391025214,1760296314219,-151.0,0.00028,7]
[391025215,1760296314231,-152.0,0.00028,2]
[391025216,1760296314241,-10201.04518665,0.00028,3]
[391025217,1760296314251,-196.0,0.00028,2]
[391025218,1760296314263,-259.0,0.00028,2]
[391025219,1760296314274,-284.0,0.00028,2]
[391025220,1760296314287,-171.92861851,0.00028,2]
[391025221,1760296314298,-179.0,0.00028,2]
[391025222,1760296314307,-199.0,0.00028,2]
[391025223,1760296314319,-1001.0,0.00028,2]
[391025224,1760296314329,-10000.0,0.00028,5]
[391025225,1760296314339,-2000.0,0.00028,7]
[391025226,1760296314350,-7118.0654722,0.00028,2]
[391025227,1760296314361,-407096.11654799,0.00028,2]
[391025228,1760296314372,-1000.0,0.00028,120]
[391025229,1760296314383,-2860.82180831,0.00028,10]
[391025230,1760296314394,-1252.64446581,0.00028,10]
[391025231,1760296314405,-1411.85,0.00028,30]
[391025232,1760296314416,-1000.0,0.00028006,7]
[391025233,1760296314428,-5396.95,0.00028041,15]
[391025234,1760296314439,-5396.95,0.00028041,15]
[391025235,1760296314450,-500.0,0.00028055,60]
[391025236,1760296314461,-559.0,0.00028055,60]
[391025237,1760296314472,-1219.0,0.00028055,14]
[391025238,1760296314482,-266.0,0.00028055,60]
[391025239,1760296314493,-681.0,0.00028055,60]
[391025240,1760296314504,-500.0,0.00028055,60]
[391025241,1760296314516,-536.0,0.00028055,60]
[391025242,1760296314527,-1357.56,0.00028072,15]
[391025243,1760296314539,-1000.0,0.00028082,7]
[391025244,1760296314550,-500.0,0.00028101,7]
[391025245,1760296314561,-500.0,0.00028109,60]
[391025246,1760296314573,-559.0,0.00028109,60]
[391025247,1760296314584,-1219.0,0.00028109,14]
[391025248,1760296314595,-681.0,0.00028109,60]
[391025249,1760296314605,-500.0,0.00028109,60]
[391025250,1760296314617,-536.0,0.00028109,60]
[391025251,1760296314628,-243.0,0.0002811,120]
[391025252,1760296314638,-150.0,0.00028134,120]
[391025253,1760296314655,-1000.0,0.00028158,7]
[391025254,1760296314666,-500.0,0.00028164,60]
[391025255,1760296314677,-559.0,0.00028164,60]
[391025256,1760296314687,-1219.0,0.00028164,14]
[391025257,1760296314697,-681.0,0.00028164,60]
[391025258,1760296314708,-500.0,0.00028164,60]
[391025259,1760296314719,-536.0,0.00028164,60]
[391025260,1760296314730,-1357.56,0.00028172,15]
[391025261,1760296314740,-150.0,0.00028211,120]
[391025262,1760296314751,-500.0,0.00028219,60]
[391025263,1760296314762,-559.0,0.00028219,60]
[391025264,1760296314773,-1219.0,0.00028219,14]
[391025265,1760296314783,-681.0,0.00028219,60]
[391025266,1760296314794,-500.0,0.00028219,60]
[391025267,1760296314804,-536.0,0.00028219,60]
[391025268,1760296314815,-200.0,0.00028227,2]
[391025269,1760296314826,-200.0,0.00028227,2]
[391025270,1760296314836,-200.0,0.00028227,2]
[391025271,1760296314848,-1000.0,0.00028234,7]
[391025272,1760296314859,-152.0,0.00028256,21]
[391025273,1760296314870,-1357.56,0.00028272,15]
[391025274,1760296314879,-384.63394623,0.00028274,2]
[391025275,1760296314889,-500.0,0.00028274,60]
[391025276,1760296314899,-559.0,0.00028274,60]
[391025277,1760296314912,-1219.0,0.00028274,14]
[391025278,1760296314923,-681.0,0.00028274,60]
[391025279,1760296314934,-500.0,0.00028274,60]
[391025280,1760296314944,-536.0,0.00028274,60]
[391025281,1760296314956,-1000.0,0.00028311,7]
[391025282,1760296314966,-5396.95,0.00028315,15]
[391025283,1760296314976,-5396.95,0.00028315,15]
[391025284,1760296314989,-528.4468175,0.00028321,7]
[391025285,1760296314999,-261.15973441,0.00028329,60]
[391025286,1760296315009,-559.0,0.00028329,60]
[391025287,1760296315019,-1219.0,0.00028329,14]
[391025288,1760296315030,-681.0,0.00028329,60]
[391025289,1760296315040,-261.0,0.00028329,60]
[391025290,1760296315051,-536.0,0.00028329,60]
[391025291,1760296315061,-450.0,0.0002835,2]
[391025292,1760296315072,-1000.0,0.00028367,15]
[391025293,1760296315083,-1357.56,0.00028372,15]
[391025294,1760296315093,-432.35,0.00028379,15]
[391025295,1760296315103,-671997.80433369,0.00028382,2]
[391025296,1760296315114,-559.0,0.00028383,60]
[391025297,1760296315124,-1219.0,0.00028383,14]
[391025298,1760296315134,-681.0,0.00028383,60]
[391025299,1760296315145,-536.0,0.00028383,60]
[391025300,1760296315156,-1000.0,0.00028387,7]
[391025301,1760296315166,-150.0,0.00028417,120]
[391025302,1760296315176,-150.0,0.00028438,120]
[391025303,1760296315186,-559.0,0.00028438,60]
[391025304,1760296315196,-1219.0,0.00028438,14]
[391025305,1760296315206,-681.0,0.00028438,60]
[391025306,1760296315216,-536.0,0.00028438,60]
[391025307,1760296315227,-400000.0,0.0002844,2]
[391025308,1760296315237,-450.0,0.0002845,2]
[391025309,1760296315247,-1000.0,0.00028463,7]
[391025310,1760296315258,-1000.0,0.00028467,15]
[391025311,1760296315270,-150.0,0.00028469,30]
[391025312,1760296315282,-1357.56,0.00028472,15]
[391025313,1760296315294,-432.35,0.00028479,15]
[391025314,1760296315304,-559.0,0.00028493,60]
[391025315,1760296315316,-1219.0,0.00028493,14]
[391025316,1760296315328,-681.0,0.00028493,60]
[391025317,1760296315340,-536.0,0.00028493,60]
[391025318,1760296315352,-163.16,0.00028493,2]
[391025319,1760296315366,-600.0,0.00028493,2]
[391025320,1760296315378,-280.03725112,0.00028494,2]
[391025321,1760296315390,-150.0,0.00028495,120]
[391025322,1760296315401,-1000.0,0.000285,2]
[391025323,1760296315412,-1411.85,0.000285,30]
[391025324,1760296315423,-2506.440469,0.000285,2]
[391025325,1760296315434,-159.088003,0.00028502,7]
[391025326,1760296315445,-2886.18845,0.00028502,7]
[391025327,1760296315456,-1462.369081,0.00028502,7]
[391025328,1760296315467,-200.0,0.00028509,2]
[391025329,1760296315477,-200.0,0.00028509,2]
[391025330,1760296315488,-500.0,0.00028518,7]
[391025331,1760296315499,-513.65737504,0.00028532,7]
[391025332,1760296315509,-1000.0,0.00028539,7]
[391025333,1760296315520,-559.0,0.00028548,60]
[391025334,1760296315531,-1219.0,0.00028548,14]
[391025335,1760296315543,-681.0,0.00028548,60]
[391025336,1760296315556,-536.0,0.00028548,60]
[391025337,1760296315567,-450.0,0.0002855,2]
[391025338,1760296315578,-152.0,0.00028557,22]
[391025339,1760296315589,-1647.85,0.00028564,30]
[391025340,1760296315601,-1000.0,0.00028567,15]
[391025341,1760296315613,-1357.56,0.00028572,15]
[391025342,1760296315625,-432.35,0.00028579,15]
[391025343,1760296315638,-5396.95,0.00028589,15]
[391025344,1760296315649,-5396.95,0.00028589,15]
[391025345,1760296315661,-150.0,0.00028593,120]
[391025346,1760296315672,-58784.6305774,0.000286,7]
[391025347,1760296315685,-2061.2915573,0.000286,7]
[391025348,1760296315695,-559.0,0.00028602,60]
[391025349,1760296315706,-1219.0,0.00028602,14]
[391025350,1760296315717,-681.0,0.00028602,60]
[391025351,1760296315729,-536.0,0.00028602,60]
[391025352,1760296315739,-406.72829628,0.00028611,5]
[391025353,1760296315749,-1000.0,0.00028615,7]
[391025354,1760296315759,-450.0,0.0002865,2]
[391025355,1760296315769,-568.44953608,0.00028657,60]
[391025356,1760296315780,-1239.48825878,0.00028657,14]
[391025357,1760296315790,-701.02911738,0.00028657,60]
[391025358,1760296315802,-557.0,0.00028657,60]
[391025359,1760296315812,-1000.0,0.00028667,15]
[391025360,1760296315824,-1357.56,0.00028672,15]
[391025361,1760296315834,-432.35,0.00028679,15]
[391025362,1760296315844,-104814.44685994,0.0002868,2]
[391025363,1760296315855,-1000.0,0.00028691,7]
[391025364,1760296315867,-160.02735807,0.000287,3]
[391025365,1760296315877,-153.95902828,0.000287,2]
[391025366,1760296315888,-150.0,0.00028741,120]
[391025367,1760296315899,-13068.53992166,0.0002875,2]
[391025368,1760296315912,-450.0,0.0002875,2]
[391025369,1760296315923,-2990.48675165,0.0002876,60]
[391025370,1760296315934,-2074.45753987,0.0002876,120]
[391025371,1760296315946,-1000.0,0.00028767,15]
[391025372,1760296315957,-150.0,0.00028767,2]
[391025373,1760296315969,-2860.91,0.00028767,120]
[391025374,1760296315980,-1000.0,0.00028767,7]
[391025375,1760296315993,-2000.0,0.00028767,120]
[391025376,1760296316006,-2000.0,0.00028767,120]
[391025377,1760296316016,-2000.0,0.00028767,120]
[391025378,1760296316027,-2000.0,0.00028767,120]
[391025379,1760296316038,-2000.0,0.00028767,120]
[391025380,1760296316049,-2000.0,0.00028767,120]
[391025381,1760296316059,-2000.0,0.00028767,120]
[391025382,1760296316070,-2000.0,0.00028767,120]
[391025383,1760296316080,-2000.0,0.00028767,120]
[391025384,1760296316091,-2000.0,0.00028767,120]
[391025385,1760296316103,-2000.0,0.00028767,120]
[391025386,1760296316114,-2000.0,0.00028767,120]
[391025387,1760296316126,-2000.0,0.00028767,120]
[391025388,1760296316136,-2000.0,0.00028767,120]
[391025389,1760296316148,-2000.0,0.00028767,120]
[391025390,1760296316165,-2000.0,0.00028767,120]
[391025391,1760296316176,-2000.0,0.00028767,120]
[391025392,1760296316186,-2000.0,0.00028767,120]
[391025393,1760296316196,-2000.0,0.00028767,120]
[391025394,1760296316207,-2000.0,0.00028767,120]
[391025395,1760296316219,-2000.0,0.00028767,120]
[391025396,1760296316231,-2000.0,0.00028767,120]
[391025397,1760296316241,-2000.0,0.00028767,120]
[391025398,1760296316251,-2000.0,0.00028767,120]
[391025399,1760296316262,-2000.0,0.00028767,120]
[391025400,1760296316273,-2000.0,0.00028767,120]
[391025401,1760296316284,-2000.0,0.00028767,120]
[391025402,1760296316295,-2000.0,0.00028767,120]
[391025403,1760296316305,-2000.0,0.00028767,120]
[391025404,1760296316315,-2000.0,0.00028767,120]
[391025405,1760296316326,-2000.0,0.00028767,120]
[391025406,1760296316336,-2000.0,0.00028767,120]
[391025407,1760296316347,-2000.0,0.00028767,120]
[391025408,1760296316357,-2000.0,0.00028767,120]
[391025409,1760296316367,-2000.0,0.00028767,120]
[391025410,1760296316378,-2000.0,0.00028767,120]
[391025411,1760296316388,-1900.0,0.00028767,120]
[391025412,1760296316397,-2000.0,0.00028767,120]
[391025413,1760296316408,-2000.0,0.00028767,120]
[391025414,1760296316418,-2000.0,0.00028767,120]
[391025415,1760296316427,-2000.0,0.00028767,120]
[391025416,1760296316436,-2000.0,0.00028767,120]
[391025417,1760296316446,-2000.0,0.00028767,120]
[391025418,1760296316456,-2000.0,0.00028767,120]
[391025419,1760296316467,-2000.0,0.00028767,120]
[391025420,1760296316477,-2000.0,0.00028767,120]
[391025421,1760296316488,-2000.0,0.00028767,120]
[391025422,1760296316498,-2000.0,0.00028767,120]
[391025423,1760296316508,-2000.0,0.00028767,120]
[391025424,1760296316519,-2000.0,0.00028767,120]
[391025425,1760296316529,-2000.0,0.00028767,120]
[391025426,1760296316541,-2000.0,0.00028767,120]
[391025427,1760296316551,-2000.0,0.00028767,120]
[391025428,1760296316561,-2000.0,0.00028767,120]
[391025429,1760296316572,-2000.0,0.00028767,120]
[391025430,1760296316583,-2000.0,0.00028767,120]
[391025431,1760296316593,-2000.0,0.00028767,120]
[391025432,1760296316603,-2000.0,0.00028767,120]
[391025433,1760296316614,-2000.0,0.00028767,120]
[391025434,1760296316624,-2000.0,0.00028767,120]
[391025435,1760296316635,-1357.56,0.00028772,15]
[391025436,1760296316645,-432.35,0.00028779,15]
[391025437,1760296316654,-882.58762549,0.00028782,10]
[391025438,1760296316666,-2860.91,0.00028794,120]
[391025439,1760296316677,-180.0,0.00028803,2]
[391025440,1760296316688,-150.0,0.00028804,120]
[391025441,1760296316699,-500.0,0.00028808,7]
[391025442,1760296316711,-2860.91,0.00028821,120]
[391025443,1760296316722,-1000.0,0.00028843,7]
[391025444,1760296316874,-2860.91,0.00028849,120]
[391025445,1760296316886,-450.0,0.0002885,2]
[391025446,1760296316898,-152.0,0.00028857,23]
[391025447,1760296316910,-581.94862382,0.00028861,30]
[391025448,1760296316923,-5396.95,0.00028863,15]
[391025449,1760296316934,-5396.95,0.00028863,15]
[391025450,1760296316945,-1000.0,0.00028867,15]
[391025451,1760296316956,-1357.56,0.00028872,15]
[391025452,1760296316968,-2860.91,0.00028876,120]
[391025453,1760296316979,-432.35,0.00028879,15]
[391025454,1760296316993,-20000.0,0.000289,7]
[391025455,1760296317004,-2016.84843735,0.000289,30]
[391025456,1760296317015,-489.6775549,0.000289,7]
[391025457,1760296317026,-2860.91,0.00028904,120]
[391025458,1760296317036,-1000.0,0.00028919,7]
[391025459,1760296317046,-2860.91,0.00028931,120]
[391025460,1760296317056,-450.0,0.0002895,2]
[391025461,1760296317067,-2860.91,0.00028958,120]
[391025462,1760296317078,-1000.0,0.00028967,15]
[391025463,1760296317089,-1357.56,0.00028972,15]
[391025464,1760296317100,-432.35,0.00028979,15]
[391025465,1760296317111,-2860.91,0.00028986,120]
[391025466,1760296317122,-253200.87753397,0.0002899,14]
[391025467,1760296317132,-886801.38092301,0.0002899,14]
[391025468,1760296317143,-1000.0,0.00028995,7]
[391025469,1760296317154,-1000.0,0.00028999,3]
[391025470,1760296317165,-20000.0,0.00029,10]
[391025471,1760296317175,-1000.0,0.00029,2]
[391025472,1760296317186,-20696.35784116,0.00029,2]
[391025473,1760296317196,-40000.0,0.00029,5]
[391025474,1760296317207,-5149.72775931,0.00029,14]
[391025475,1760296317218,-3000.25,0.00029,7]
[391025476,1760296317228,-400.0,0.00029,120]
[391025477,1760296317238,-600.0,0.00029,120]
[391025478,1760296317249,-152.0,0.00029,30]
[391025479,1760296317260,-196.0,0.00029,30]
[391025480,1760296317270,-259.0,0.00029,30]
[391025481,1760296317281,-284.0,0.00029,30]
[391025482,1760296317291,-171.0,0.00029,30]
[391025483,1760296317302,-550.0,0.00029,2]
[391025484,1760296317313,-1411.85,0.00029,30]
[391025485,1760296317324,-1001.0,0.00029,2]
[391025486,1760296317335,-2587.0,0.00029,2]
[391025487,1760296317345,-1500.0,0.00029,2]
[391025488,1760296317356,-2860.91,0.00029013,120]
[391025489,1760296317368,-150.0,0.00029017,30]
[391025490,1760296317379,-2860.91,0.00029041,120]
[391025491,1760296317390,-1444.0,0.00029041,120]
[391025492,1760296317402,-600.0,0.00029041,2]
[391025493,1760296317413,-290.39862941,0.00029042,2]
[391025494,1760296317425,-450.0,0.0002905,2]
[391025495,1760296317437,-150.0,0.00029065,120]
[391025496,1760296317449,-1000.0,0.00029067,15]
[391025497,1760296317460,-2860.91,0.00029068,120]
[391025498,1760296317471,-1357.56,0.00029072,15]
[391025499,1760296317481,-1000.0,0.00029072,7]
[391025500,1760296317492,-432.35,0.00029079,15]
[391025501,1760296317503,-2860.91,0.00029095,120]
[391025502,1760296317513,-150.0,0.00029104,120]
[391025503,1760296317524,-5010.81127214,0.00029116,2]
[391025504,1760296317534,-2860.91,0.00029123,120]
[391025505,1760296317544,-5396.95,0.00029137,15]
[391025506,1760296317554,-5396.95,0.00029137,15]
[391025507,1760296317564,-1000.0,0.00029148,7]
[391025508,1760296317582,-3000.0,0.00029148,15]
[391025509,1760296317593,-2860.91,0.0002915,120]
[391025510,1760296317603,-152.0,0.00029157,24]
[391025511,1760296317613,-1000.0,0.00029167,15]
[391025512,1760296317623,-1357.56,0.00029172,15]
[391025513,1760296317633,-2860.91,0.00029178,120]
[391025514,1760296317643,-432.35,0.00029179,15]
[391025515,1760296317653,-2860.91,0.00029205,120]
[391025516,1760296317663,-1000.0,0.00029224,7]
[391025517,1760296317672,-2860.91,0.00029232,120]
[391025518,1760296317682,-2860.91,0.0002926,120]
[391025519,1760296317692,-1000.0,0.00029267,15]
[391025520,1760296317702,-1357.56,0.00029272,15]
[391025521,1760296317713,-432.35,0.00029279,15]
[391025522,1760296317724,-2860.91,0.00029287,120]
[391025523,1760296317734,-1000.0,0.000293,7]
[391025524,1760296317744,-2860.91,0.00029315,120]
[391025525,1760296317755,-2860.91,0.00029342,120]
[391025526,1760296317764,-1000.0,0.00029367,15]
[391025527,1760296317774,-2860.91,0.00029369,120]
[391025528,1760296317783,-1357.56,0.00029372,15]
[391025529,1760296317794,-1000.0,0.00029376,7]
[391025530,1760296317804,-432.35,0.00029379,15]
[391025531,1760296317815,-2861.11634451,0.00029397,120]
[391025532,1760296317827,-5396.95,0.00029411,15]
[391025533,1760296317839,-5396.95,0.00029411,15]
[391025534,1760296317848,-150.0,0.00029411,120]
[391025535,1760296317858,-2777.0,0.00029437,36]
[391025536,1760296317868,-400000.0,0.0002944,2]
[391025537,1760296317877,-1000.0,0.00029452,7]
[391025538,1760296317887,-152.0,0.00029457,25]
[391025539,1760296317896,-1000.0,0.00029467,15]
[391025540,1760296317910,-671997.80433369,0.00029468,2]
[391025541,1760296317919,-1364.9621309,0.00029469,2]
[391025542,1760296317930,-1357.56,0.00029472,15]
[391025543,1760296317941,-432.35,0.00029479,15]
[391025544,1760296317953,-3671.68255722,0.00029482,2]
[391025545,1760296317963,-150.0,0.00029483,120]
[391025546,1760296317975,-2440.0,0.00029487,30]
[391025547,1760296317989,-1098.29845478,0.000295,2]
[391025548,1760296317999,-1000.0,0.000295,2]
[391025549,1760296318010,-230436.62676987,0.000295,2]
[391025550,1760296318022,-1500.0,0.000295,2]
[391025551,1760296318033,-50000.0,0.00029501,30]